[Event "Titled Tuesday Blitz July 4 Early 2023"]
[White "Tuleyeva-Aketayeva, Dana"]
[Black "Slavin, Alexey"]
[WhiteFideId "13701932"]
[BlackFideId "24104388"]
[WhiteElo "2247"]
[BlackElo "2364"]
[Result "0-1"]
[Round "9"]
[TimeControl "180+2"]
[Date "2023.07.04"]
[WhiteClock "0:00:00"]
[BlackClock "0:00:15"]
[Board "149"]

1. d4 {[%clk 0:02:49]}  Nc6 {[%clk 0:03:00]} 2. d5 {[%clk 0:02:46]}  Ne5 {[%clk 0:03:00]} 3. Nf3 {[%clk 0:02:43]}  Ng6 {[%clk 0:03:01]} 4. g3 {[%clk 0:02:42]}  e5 {[%clk 0:03:01]} 5. Nc3 {[%clk 0:02:39]}  Bc5 {[%clk 0:03:01]} 6. Bg2 {[%clk 0:02:39]}  Nf6 {[%clk 0:03:01]} 7. O-O {[%clk 0:02:38]}  O-O {[%clk 0:03:01]} 8. Rb1 {[%clk 0:02:31]}  a6 {[%clk 0:02:58]} 9. b4 {[%clk 0:02:31]}  Ba7 {[%clk 0:02:58]} 10. a4 {[%clk 0:02:22]}  d6 {[%clk 0:02:58]} 11. b5 {[%clk 0:02:17]}  h6 {[%clk 0:02:51]} 12. h3 {[%clk 0:02:02]}  Bd7 {[%clk 0:02:51]} 13. e4 {[%clk 0:02:02]}  axb5 {[%clk 0:02:42]} 14. Nxb5 {[%clk 0:01:50]}  Nxe4 {[%clk 0:02:35]} 15. Nxa7 {[%clk 0:01:44]}  Rxa7 {[%clk 0:02:23]} 16. Nxe5 {[%clk 0:01:30]}  Nc3 {[%clk 0:02:19]} 17. Qd3 {[%clk 0:01:21]}  Nxb1 {[%clk 0:02:15]} 18. Nxg6 {[%clk 0:01:15]}  fxg6 {[%clk 0:02:14]} 19. Be3 {[%clk 0:01:13]}  Rxa4 {[%clk 0:02:03]} 20. Rxb1 {[%clk 0:01:13]}  b6 {[%clk 0:01:37]} 21. Qxg6 {[%clk 0:01:00]}  Qf6 {[%clk 0:01:37]} 22. Qd3 {[%clk 0:00:55]}  Ra1 {[%clk 0:01:34]} 23. Qd1 {[%clk 0:00:47]}  Rfa8 {[%clk 0:01:27]} 24. Kh2 {[%clk 0:00:44]}  Rxb1 {[%clk 0:01:25]} 25. Qxb1 {[%clk 0:00:44]}  Bf5 {[%clk 0:01:20]} 26. Qb3 {[%clk 0:00:42]}  Qg6 {[%clk 0:01:17]} 27. Qc4 {[%clk 0:00:35]}  Rc8 {[%clk 0:01:15]} 28. c3 {[%clk 0:00:25]}  Bd3 {[%clk 0:01:04]} 29. Qd4 {[%clk 0:00:23]}  Bf5 {[%clk 0:00:57]} 30. g4 {[%clk 0:00:21]}  Bb1 {[%clk 0:00:54]} 31. Qc4 {[%clk 0:00:20]}  Qe8 {[%clk 0:00:40]} 32. Qd4 {[%clk 0:00:17]}  Bg6 {[%clk 0:00:38]} 33. Qf4 {[%clk 0:00:16]}  Qe7 {[%clk 0:00:32]} 34. Qc4 {[%clk 0:00:13]}  Rf8 {[%clk 0:00:32]} 35. Qd4 {[%clk 0:00:10]}  Re8 {[%clk 0:00:31]} 36. Kg1 {[%clk 0:00:10]}  Be4 {[%clk 0:00:28]} 37. Bf1 {[%clk 0:00:09]}  Qe5 {[%clk 0:00:25]} 38. c4 {[%clk 0:00:08]}  Qxd4 {[%clk 0:00:21]} 39. Bxd4 {[%clk 0:00:09]}  Ra8 {[%clk 0:00:21]} 40. Be3 {[%clk 0:00:08]}  Ra1 {[%clk 0:00:21]} 41. Bd4 {[%clk 0:00:07]}  Rc1 {[%clk 0:00:19]} 42. Be3 {[%clk 0:00:06]}  Rb1 {[%clk 0:00:18]} 43. f3 {[%clk 0:00:06]}  Bd3 {[%clk 0:00:18]} 44. Kh2 {[%clk 0:00:03]}  Bxf1 {[%clk 0:00:18]} 45. Bf4 {[%clk 0:00:02]}  Bxc4 {[%clk 0:00:17]} 46. g5 {[%clk 0:00:02]}  hxg5 {[%clk 0:00:16]} 47. Bxg5 {[%clk 0:00:03]}  Bxd5 {[%clk 0:00:16]} 48. Bd8 {[%clk 0:00:03]}  Rc1 {[%clk 0:00:16]} 49. h4 {[%clk 0:00:02]}  Bxf3 {[%clk 0:00:15]} 50. h5 {[%clk 0:00:00]}  Bxh5 {[%clk 0:00:15]} 0-1


[Site "https://www.chess.com"]

[Event "Titled Tuesday Blitz July 4 Early 2023"]
[White "Adireddy Arjun"]
[Black "Xavier_mompel"]
[WhiteFideId "25647709"]
[WhiteElo "2361"]
[BlackElo "2244"]
[Result "0-1"]
[Round "9"]
[TimeControl "180+2"]
[Date "2023.07.04"]
[WhiteClock "0:00:00"]
[BlackClock "0:00:12"]
[Board "150"]

1. e4 {[%clk 0:03:00]}  c5 {[%clk 0:02:59]} 2. Nf3 {[%clk 0:02:57]}  e6 {[%clk 0:02:59]} 3. d4 {[%clk 0:02:57]}  cxd4 {[%clk 0:03:00]} 4. Nxd4 {[%clk 0:02:58]}  Nc6 {[%clk 0:03:00]} 5. Nc3 {[%clk 0:02:55]}  Qc7 {[%clk 0:03:00]} 6. Be3 {[%clk 0:02:55]}  a6 {[%clk 0:03:00]} 7. Qd2 {[%clk 0:02:54]}  Nf6 {[%clk 0:02:59]} 8. f3 {[%clk 0:02:51]}  Be7 {[%clk 0:02:59]} 9. O-O-O {[%clk 0:02:50]}  b5 {[%clk 0:02:58]} 10. g4 {[%clk 0:02:50]}  Nxd4 {[%clk 0:02:58]} 11. Bxd4 {[%clk 0:02:50]}  Bb7 {[%clk 0:02:58]} 12. h4 {[%clk 0:02:47]}  d5 {[%clk 0:02:42]} 13. exd5 {[%clk 0:02:39]}  b4 {[%clk 0:02:28]} 14. Bxf6 {[%clk 0:01:51]}  gxf6 {[%clk 0:02:10]} 15. Ne4 {[%clk 0:01:25]}  Bxd5 {[%clk 0:02:09]} 16. Kb1 {[%clk 0:01:23]}  Qc6 {[%clk 0:01:48]} 17. Bd3 {[%clk 0:01:19]}  Rc8 {[%clk 0:01:34]} 18. g5 {[%clk 0:01:02]}  f5 {[%clk 0:01:30]} 19. Nf6+ {[%clk 0:01:01]}  Bxf6 {[%clk 0:01:26]} 20. gxf6 {[%clk 0:01:02]}  Bxf3 {[%clk 0:01:26]} 21. Qxb4 {[%clk 0:00:44]}  Qc5 {[%clk 0:01:12]} 22. Qa4+ {[%clk 0:00:41]}  Bc6 {[%clk 0:01:05]} 23. Qxa6 {[%clk 0:00:35]}  Bxh1 {[%clk 0:01:03]} 24. Rxh1 {[%clk 0:00:27]}  Rg8 {[%clk 0:00:57]} 25. a4 {[%clk 0:00:18]}  Rg1+ {[%clk 0:00:55]} 26. Rxg1 {[%clk 0:00:17]}  Qxg1+ {[%clk 0:00:56]} 27. Ka2 {[%clk 0:00:18]}  Qc5 {[%clk 0:00:54]} 28. Qb7 {[%clk 0:00:04]}  f4 {[%clk 0:00:27]} 29. Qg2 {[%clk 0:00:03]}  Qd5+ {[%clk 0:00:23]} 30. Qxd5 {[%clk 0:00:04]}  exd5 {[%clk 0:00:24]} 31. Bxh7 {[%clk 0:00:04]}  f3 {[%clk 0:00:23]} 32. Bd3 {[%clk 0:00:04]}  f2 {[%clk 0:00:20]} 33. c3 {[%clk 0:00:03]}  Rc6 {[%clk 0:00:13]} 34. Bb5 {[%clk 0:00:03]}  Kd8 {[%clk 0:00:13]} 35. Bxc6 {[%clk 0:00:02]}  f1=Q {[%clk 0:00:13]} 36. Bxd5 {[%clk 0:00:02]}  Qxf6 {[%clk 0:00:12]} 37. Bb3 {[%clk 0:00:00]}  Qxh4 {[%clk 0:00:12]} 0-1


[Site "https://www.chess.com"]

[Event "Titled Tuesday Blitz July 4 Early 2023"]
[White "Koridze, Lile"]
[Black "Warchol, Kamil"]
[WhiteFideId "13612514"]
[BlackFideId "21858241"]
[WhiteElo "2346"]
[BlackElo "2241"]
[Result "1-0"]
[Round "9"]
[TimeControl "180+2"]
[Date "2023.07.04"]
[WhiteClock "0:00:05"]
[BlackClock "0:00:02"]
[Board "152"]

1. d4 {[%clk 0:03:00]}  Nf6 {[%clk 0:02:56]} 2. c4 {[%clk 0:02:55]}  e6 {[%clk 0:02:52]} 3. Nf3 {[%clk 0:02:54]}  d5 {[%clk 0:02:48]} 4. g3 {[%clk 0:02:54]}  Bb4+ {[%clk 0:02:34]} 5. Bd2 {[%clk 0:02:54]}  Be7 {[%clk 0:02:22]} 6. Bg2 {[%clk 0:02:54]}  O-O {[%clk 0:02:14]} 7. O-O {[%clk 0:02:54]}  c6 {[%clk 0:02:10]} 8. Qc2 {[%clk 0:02:53]}  Nbd7 {[%clk 0:02:10]} 9. Nc3 {[%clk 0:02:48]}  dxc4 {[%clk 0:01:51]} 10. a4 {[%clk 0:02:38]}  a6 {[%clk 0:01:43]} 11. e4 {[%clk 0:02:35]}  b5 {[%clk 0:01:33]} 12. axb5 {[%clk 0:02:34]}  cxb5 {[%clk 0:01:32]} 13. Nxb5 {[%clk 0:02:34]}  Bb7 {[%clk 0:01:31]} 14. Nc3 {[%clk 0:02:32]}  Bb4 {[%clk 0:01:27]} 15. e5 {[%clk 0:02:24]}  Nd5 {[%clk 0:01:00]} 16. Nxd5 {[%clk 0:02:06]}  Bxd2 {[%clk 0:00:59]} 17. Nc3 {[%clk 0:01:36]}  Bh6 {[%clk 0:00:44]} 18. Rad1 {[%clk 0:01:29]}  Nb6 {[%clk 0:00:44]} 19. Rfe1 {[%clk 0:01:25]}  Qd7 {[%clk 0:00:38]} 20. Nd2 {[%clk 0:01:18]}  Bxg2 {[%clk 0:00:35]} 21. Kxg2 {[%clk 0:01:18]}  Qxd4 {[%clk 0:00:30]} 22. Nde4 {[%clk 0:01:17]}  Qxe5 {[%clk 0:00:26]} 23. h4 {[%clk 0:01:03]}  Qf5 {[%clk 0:00:23]} 24. Qe2 {[%clk 0:01:01]}  Qg6 {[%clk 0:00:17]} 25. Rd6 {[%clk 0:00:47]}  Rab8 {[%clk 0:00:15]} 26. Nc5 {[%clk 0:00:23]}  Rfd8 {[%clk 0:00:14]} 27. Red1 {[%clk 0:00:18]}  Rxd6 {[%clk 0:00:13]} 28. Rxd6 {[%clk 0:00:19]}  Bf4 {[%clk 0:00:11]} 29. Rd1 {[%clk 0:00:15]}  Bh6 {[%clk 0:00:08]} 30. Nxa6 {[%clk 0:00:15]}  Rc8 {[%clk 0:00:07]} 31. Nc5 {[%clk 0:00:12]}  Qf5 {[%clk 0:00:06]} 32. N5e4 {[%clk 0:00:12]}  Nd5 {[%clk 0:00:05]} 33. Nd6 {[%clk 0:00:08]}  Nxc3 {[%clk 0:00:04]} 34. bxc3 {[%clk 0:00:08]}  Qc5 {[%clk 0:00:01]} 35. Nxc8 {[%clk 0:00:09]}  Qxc8 {[%clk 0:00:02]} 36. Qxc4 {[%clk 0:00:07]}  Qa8+ {[%clk 0:00:03]} 37. Kg1 {[%clk 0:00:07]}  g6 {[%clk 0:00:03]} 38. Qd4 {[%clk 0:00:06]}  Qa6 {[%clk 0:00:02]} 39. c4 {[%clk 0:00:06]}  Bg7 {[%clk 0:00:02]} 40. Qd8+ {[%clk 0:00:06]}  Bf8 {[%clk 0:00:02]} 41. Qc7 {[%clk 0:00:05]}  Qa4 {[%clk 0:00:01]} 42. Rd7 {[%clk 0:00:04]}  Qa1+ {[%clk 0:00:01]} 43. Kg2 {[%clk 0:00:04]}  Qf6 {[%clk 0:00:01]} 44. c5 {[%clk 0:00:04]}  Qf5 {[%clk 0:00:02]} 45. Qb7 {[%clk 0:00:02]}  Qxc5 {[%clk 0:00:01]} 46. Rxf7 {[%clk 0:00:01]}  Qd5+ {[%clk 0:00:02]} 47. Qxd5 {[%clk 0:00:01]}  exd5 {[%clk 0:00:02]} 48. Rd7 {[%clk 0:00:01]}  d4 {[%clk 0:00:02]} 49. Rxd4 {[%clk 0:00:02]}  Bg7 {[%clk 0:00:02]} 50. Rd7 {[%clk 0:00:02]}  Kf8 {[%clk 0:00:03]} 51. Kf3 {[%clk 0:00:03]}  Kg8 {[%clk 0:00:03]} 52. Rb7 {[%clk 0:00:03]}  Bf6 {[%clk 0:00:04]} 53. Ke4 {[%clk 0:00:04]}  Bg7 {[%clk 0:00:04]} 54. g4 {[%clk 0:00:04]}  Bf6 {[%clk 0:00:04]} 55. h5 {[%clk 0:00:04]}  Bg7 {[%clk 0:00:02]} 56. hxg6 {[%clk 0:00:04]}  hxg6 {[%clk 0:00:03]} 57. f4 {[%clk 0:00:04]}  Bf6 {[%clk 0:00:03]} 58. g5 {[%clk 0:00:03]}  Bg7 {[%clk 0:00:03]} 59. f5 {[%clk 0:00:04]}  gxf5+ {[%clk 0:00:04]} 60. Kxf5 {[%clk 0:00:05]}  Kf8 {[%clk 0:00:04]} 61. Kg6 {[%clk 0:00:05]}  Bd4 {[%clk 0:00:02]} 62. Kh7 {[%clk 0:00:05]} 1-0


[Site "https://www.chess.com"]

[Event "Titled Tuesday Blitz July 4 Early 2023"]
[White "Acikel, Mert"]
[Black "Skiadopoulos, Nikolaos"]
[WhiteFideId "12956465"]
[BlackFideId "4200772"]
[WhiteElo "2298"]
[BlackElo "1904"]
[Result "1-0"]
[Round "9"]
[TimeControl "180+2"]
[Date "2023.07.04"]
[WhiteClock "0:02:17"]
[BlackClock "0:00:47"]
[Board "156"]

1. e4 {[%clk 0:02:59]}  c5 {[%clk 0:02:59]} 2. Nf3 {[%clk 0:02:59]}  Nc6 {[%clk 0:02:58]} 3. Bb5 {[%clk 0:02:59]}  Na5 {[%clk 0:02:57]} 4. O-O {[%clk 0:02:57]}  a6 {[%clk 0:02:57]} 5. Be2 {[%clk 0:02:57]}  b5 {[%clk 0:02:57]} 6. d4 {[%clk 0:02:57]}  cxd4 {[%clk 0:02:56]} 7. Nxd4 {[%clk 0:02:57]}  e5 {[%clk 0:02:55]} 8. Nf3 {[%clk 0:02:56]}  Nc6 {[%clk 0:02:54]} 9. Be3 {[%clk 0:02:54]}  Nf6 {[%clk 0:02:52]} 10. Nbd2 {[%clk 0:02:52]}  Ng4 {[%clk 0:02:45]} 11. Bg5 {[%clk 0:02:52]}  Be7 {[%clk 0:02:42]} 12. Bxe7 {[%clk 0:02:52]}  Qxe7 {[%clk 0:02:40]} 13. Re1 {[%clk 0:02:47]}  O-O {[%clk 0:02:38]} 14. h3 {[%clk 0:02:47]}  Nh6 {[%clk 0:02:29]} 15. c4 {[%clk 0:02:46]}  b4 {[%clk 0:02:25]} 16. Qc2 {[%clk 0:02:43]}  d6 {[%clk 0:02:23]} 17. Rad1 {[%clk 0:02:40]}  f5 {[%clk 0:02:22]} 18. exf5 {[%clk 0:02:33]}  Bxf5 {[%clk 0:02:21]} 19. Bd3 {[%clk 0:02:32]}  Bxd3 {[%clk 0:02:13]} 20. Qxd3 {[%clk 0:02:32]}  Rad8 {[%clk 0:02:13]} 21. Qd5+ {[%clk 0:02:29]}  Kh8 {[%clk 0:02:07]} 22. Qxc6 {[%clk 0:02:30]}  Nf5 {[%clk 0:02:03]} 23. Ne4 {[%clk 0:02:24]}  a5 {[%clk 0:01:48]} 24. c5 {[%clk 0:02:23]}  Rc8 {[%clk 0:01:38]} 25. cxd6 {[%clk 0:02:23]}  Qa7 {[%clk 0:01:28]} 26. Qd5 {[%clk 0:02:20]}  Rfd8 {[%clk 0:00:47]} 27. Qxe5 {[%clk 0:02:17]} 1-0


[Site "https://www.chess.com"]

[Event "Titled Tuesday Blitz July 4 Early 2023"]
[White "Mendez, Ruddy Antonio"]
[Black "Aanna12"]
[WhiteFideId "6403387"]
[WhiteElo "2272"]
[BlackElo "2085"]
[Result "0-1"]
[Round "9"]
[TimeControl "180+2"]
[Date "2023.07.04"]
[WhiteClock "0:00:00"]
[BlackClock "0:00:26"]
[Board "162"]

1. d4 {[%clk 0:03:00]}  Nf6 {[%clk 0:02:58]} 2. c4 {[%clk 0:02:53]}  d6 {[%clk 0:02:57]} 3. Nf3 {[%clk 0:02:51]}  Nbd7 {[%clk 0:02:56]} 4. g3 {[%clk 0:02:50]}  e5 {[%clk 0:02:56]} 5. Bg2 {[%clk 0:02:50]}  Be7 {[%clk 0:02:56]} 6. O-O {[%clk 0:02:50]}  O-O {[%clk 0:02:56]} 7. Nc3 {[%clk 0:02:50]}  c6 {[%clk 0:02:55]} 8. e4 {[%clk 0:02:50]}  Qc7 {[%clk 0:02:54]} 9. h3 {[%clk 0:02:48]}  Re8 {[%clk 0:02:53]} 10. Re1 {[%clk 0:02:48]}  Bf8 {[%clk 0:02:53]} 11. Be3 {[%clk 0:02:46]}  h6 {[%clk 0:02:45]} 12. Rc1 {[%clk 0:02:46]}  exd4 {[%clk 0:02:44]} 13. Nxd4 {[%clk 0:02:46]}  Nc5 {[%clk 0:02:44]} 14. Qc2 {[%clk 0:02:46]}  a5 {[%clk 0:02:43]} 15. b3 {[%clk 0:02:45]}  Bd7 {[%clk 0:02:36]} 16. a3 {[%clk 0:02:44]}  Ne6 {[%clk 0:02:26]} 17. Na4 {[%clk 0:02:35]}  Ng5 {[%clk 0:01:43]} 18. Kh2 {[%clk 0:02:06]}  Ngxe4 {[%clk 0:01:41]} 19. Ne2 {[%clk 0:01:59]}  Bf5 {[%clk 0:01:29]} 20. Qd1 {[%clk 0:01:51]}  c5 {[%clk 0:00:52]} 21. Nf4 {[%clk 0:01:45]}  Rad8 {[%clk 0:00:50]} 22. Nd5 {[%clk 0:01:37]}  Nxd5 {[%clk 0:00:46]} 23. Qxd5 {[%clk 0:01:36]}  Bg6 {[%clk 0:00:45]} 24. Red1 {[%clk 0:01:33]}  Re5 {[%clk 0:00:41]} 25. Qd3 {[%clk 0:00:45]}  Nxf2 {[%clk 0:00:41]} 26. Qd2 {[%clk 0:00:40]}  Nxd1 {[%clk 0:00:41]} 27. Rxd1 {[%clk 0:00:40]}  Rde8 {[%clk 0:00:38]} 28. Bf4 {[%clk 0:00:31]}  Re2 {[%clk 0:00:38]} 29. Qd5 {[%clk 0:00:28]}  Be4 {[%clk 0:00:33]} 30. Qxe4 {[%clk 0:00:14]}  R8xe4 {[%clk 0:00:32]} 31. Rg1 {[%clk 0:00:14]}  Rd4 {[%clk 0:00:29]} 32. Nc3 {[%clk 0:00:08]}  Rc2 {[%clk 0:00:28]} 33. Nd5 {[%clk 0:00:08]}  Rxd5 {[%clk 0:00:26]} 34. cxd5 {[%clk 0:00:09]}  Qe7 {[%clk 0:00:26]} 35. h4 {[%clk 0:00:00]}  Qe2 {[%clk 0:00:26]} 0-1


[Site "https://www.chess.com"]

[Event "Titled Tuesday Blitz July 4 Early 2023"]
[White "Mishra, Manoj"]
[Black "Politov, Pavel Y."]
[WhiteFideId "5006007"]
[BlackFideId "24110515"]
[WhiteElo "2209"]
[BlackElo "2061"]
[Result "0-1"]
[Round "9"]
[TimeControl "180+2"]
[Date "2023.07.04"]
[WhiteClock "0:01:02"]
[BlackClock "0:00:34"]
[Board "164"]

1. b3 {[%clk 0:03:00]}  d5 {[%clk 0:02:54]} 2. Bb2 {[%clk 0:02:59]}  Nf6 {[%clk 0:02:49]} 3. e3 {[%clk 0:02:59]}  g6 {[%clk 0:02:49]} 4. f4 {[%clk 0:02:49]}  Bg7 {[%clk 0:02:48]} 5. Nf3 {[%clk 0:02:49]}  O-O {[%clk 0:02:48]} 6. Ne5 {[%clk 0:02:48]}  Nbd7 {[%clk 0:02:44]} 7. d3 {[%clk 0:02:46]}  Nxe5 {[%clk 0:02:25]} 8. Bxe5 {[%clk 0:02:32]}  Ng4 {[%clk 0:02:12]} 9. Bxg7 {[%clk 0:02:30]}  Kxg7 {[%clk 0:02:10]} 10. Qc1 {[%clk 0:02:16]}  d4 {[%clk 0:01:58]} 11. e4 {[%clk 0:02:08]}  Ne3 {[%clk 0:01:50]} 12. Nd2 {[%clk 0:02:07]}  Qd6 {[%clk 0:01:45]} 13. g3 {[%clk 0:01:58]}  Qc5 {[%clk 0:01:31]} 14. Nc4 {[%clk 0:01:56]}  Qb4+ {[%clk 0:01:10]} 15. Ke2 {[%clk 0:01:42]}  Nxc4 {[%clk 0:01:01]} 16. bxc4 {[%clk 0:01:38]}  Qc5 {[%clk 0:00:49]} 17. Rb1 {[%clk 0:01:35]}  c6 {[%clk 0:00:47]} 18. c3 {[%clk 0:01:21]}  e5 {[%clk 0:00:44]} 19. Qb2 {[%clk 0:01:14]}  Bg4+ {[%clk 0:00:37]} 20. Ke1 {[%clk 0:01:11]}  dxc3 {[%clk 0:00:35]} 21. Qxc3 {[%clk 0:01:02]}  Qe3+ {[%clk 0:00:34]} 0-1


[Site "https://www.chess.com"]

[Event "Titled Tuesday Blitz July 4 Early 2023"]
[White "Sariego Figueredo, Wilfredo"]
[Black "Goughfather"]
[WhiteFideId "3500080"]
[WhiteElo "2191"]
[BlackElo "2046"]
[Result "1-0"]
[Round "9"]
[TimeControl "180+2"]
[Date "2023.07.04"]
[WhiteClock "0:00:38"]
[BlackClock "0:00:00"]
[Board "165"]

1. d4 {[%clk 0:02:58]}  d5 {[%clk 0:02:59]} 2. Bf4 {[%clk 0:02:58]}  Nf6 {[%clk 0:02:58]} 3. e3 {[%clk 0:02:58]}  c5 {[%clk 0:02:56]} 4. c3 {[%clk 0:02:58]}  e6 {[%clk 0:02:54]} 5. Nd2 {[%clk 0:02:57]}  Bd6 {[%clk 0:02:53]} 6. Bg3 {[%clk 0:02:55]}  Qc7 {[%clk 0:02:51]} 7. Ngf3 {[%clk 0:02:54]}  Nbd7 {[%clk 0:02:45]} 8. Be2 {[%clk 0:02:47]}  O-O {[%clk 0:02:38]} 9. O-O {[%clk 0:02:44]}  e5 {[%clk 0:02:38]} 10. dxe5 {[%clk 0:02:44]}  Nxe5 {[%clk 0:02:39]} 11. Nxe5 {[%clk 0:02:45]}  Bxe5 {[%clk 0:02:39]} 12. Bxe5 {[%clk 0:02:45]}  Qxe5 {[%clk 0:02:39]} 13. c4 {[%clk 0:02:44]}  dxc4 {[%clk 0:01:59]} 14. Nxc4 {[%clk 0:02:43]}  Qe7 {[%clk 0:01:59]} 15. a4 {[%clk 0:02:40]}  b6 {[%clk 0:01:52]} 16. Bf3 {[%clk 0:02:38]}  Bb7 {[%clk 0:01:52]} 17. Bxb7 {[%clk 0:02:34]}  Qxb7 {[%clk 0:01:53]} 18. Qc2 {[%clk 0:02:33]}  Rad8 {[%clk 0:01:45]} 19. Rfd1 {[%clk 0:02:30]}  Qc7 {[%clk 0:01:41]} 20. h3 {[%clk 0:02:19]}  Rxd1+ {[%clk 0:01:38]} 21. Rxd1 {[%clk 0:02:15]}  Rd8 {[%clk 0:01:39]} 22. Rd3 {[%clk 0:02:09]}  Rxd3 {[%clk 0:01:36]} 23. Qxd3 {[%clk 0:02:03]}  Qd7 {[%clk 0:01:37]} 24. Qc2 {[%clk 0:01:52]}  Qd5 {[%clk 0:01:28]} 25. a5 {[%clk 0:01:46]}  b5 {[%clk 0:01:28]} 26. Na3 {[%clk 0:01:46]}  a6 {[%clk 0:01:27]} 27. Nb1 {[%clk 0:01:32]}  Qe4 {[%clk 0:01:17]} 28. Qd1 {[%clk 0:01:25]}  Qd5 {[%clk 0:01:15]} 29. Qc1 {[%clk 0:01:23]}  c4 {[%clk 0:01:08]} 30. Nc3 {[%clk 0:01:19]}  Qd3 {[%clk 0:01:07]} 31. Qa1 {[%clk 0:01:10]}  Nd5 {[%clk 0:00:42]} 32. Nxb5 {[%clk 0:00:48]}  axb5 {[%clk 0:00:23]} 33. a6 {[%clk 0:00:46]}  Nc7 {[%clk 0:00:15]} 34. Qa5 {[%clk 0:00:42]}  Qd8 {[%clk 0:00:14]} 35. a7 {[%clk 0:00:40]}  Qd1+ {[%clk 0:00:05]} 36. Kh2 {[%clk 0:00:39]}  Qd6+ {[%clk 0:00:02]} 37. g3 {[%clk 0:00:39]}  Na8 {[%clk 0:00:00]} 38. Qxb5 {[%clk 0:00:38]} 1-0


[Site "https://www.chess.com"]

[Event "Titled Tuesday Blitz July 4 Early 2023"]
[White "Gyulamiryan-koryun"]
[Black "Kiseleva, Arina"]
[BlackFideId "4164989"]
[WhiteElo "1693"]
[BlackElo "2187"]
[Result "1-0"]
[Round "9"]
[TimeControl "180+2"]
[Date "2023.07.04"]
[WhiteClock "0:00:03"]
[BlackClock "0:00:00"]
[Board "166"]

1. d4 {[%clk 0:02:59]}  Nf6 {[%clk 0:02:58]} 2. c4 {[%clk 0:02:58]}  e6 {[%clk 0:02:59]} 3. Nc3 {[%clk 0:02:57]}  Bb4 {[%clk 0:02:59]} 4. Qc2 {[%clk 0:02:57]}  O-O {[%clk 0:02:58]} 5. Nf3 {[%clk 0:02:57]}  Qe7 {[%clk 0:02:58]} 6. Bg5 {[%clk 0:02:56]}  h6 {[%clk 0:02:57]} 7. Bh4 {[%clk 0:02:56]}  a5 {[%clk 0:02:56]} 8. e3 {[%clk 0:02:55]}  d6 {[%clk 0:02:56]} 9. Bd3 {[%clk 0:02:55]}  e5 {[%clk 0:02:45]} 10. O-O {[%clk 0:02:53]}  Bxc3 {[%clk 0:02:35]} 11. bxc3 {[%clk 0:01:47]}  Re8 {[%clk 0:02:32]} 12. Nd2 {[%clk 0:01:41]}  b6 {[%clk 0:02:24]} 13. Be4 {[%clk 0:01:30]}  Ra7 {[%clk 0:02:24]} 14. Bf3 {[%clk 0:01:23]}  Bb7 {[%clk 0:02:19]} 15. h3 {[%clk 0:01:00]}  g5 {[%clk 0:01:55]} 16. Bg3 {[%clk 0:00:59]}  e4 {[%clk 0:01:52]} 17. Be2 {[%clk 0:00:58]}  Nbd7 {[%clk 0:01:46]} 18. Rae1 {[%clk 0:00:54]}  Nf8 {[%clk 0:01:44]} 19. f3 {[%clk 0:00:43]}  Ng6 {[%clk 0:01:28]} 20. fxe4 {[%clk 0:00:32]}  Nxe4 {[%clk 0:01:26]} 21. Nxe4 {[%clk 0:00:29]}  Bxe4 {[%clk 0:01:21]} 22. Bd3 {[%clk 0:00:28]}  Raa8 {[%clk 0:01:04]} 23. Bxe4 {[%clk 0:00:16]}  Qxe4 {[%clk 0:01:05]} 24. Qf2 {[%clk 0:00:15]}  Re7 {[%clk 0:00:58]} 25. Qf6 {[%clk 0:00:10]}  Rae8 {[%clk 0:00:54]} 26. Kh2 {[%clk 0:00:10]}  Qe6 {[%clk 0:00:47]} 27. Qf3 {[%clk 0:00:10]}  Qxc4 {[%clk 0:00:28]} 28. e4 {[%clk 0:00:10]}  Qxa2 {[%clk 0:00:25]} 29. Qh5 {[%clk 0:00:09]}  Kg7 {[%clk 0:00:23]} 30. e5 {[%clk 0:00:09]}  dxe5 {[%clk 0:00:21]} 31. dxe5 {[%clk 0:00:09]}  Qe6 {[%clk 0:00:13]} 32. h4 {[%clk 0:00:08]}  gxh4 {[%clk 0:00:10]} 33. Bxh4 {[%clk 0:00:07]}  Nxh4 {[%clk 0:00:10]} 34. Qxh4 {[%clk 0:00:08]}  Qg6 {[%clk 0:00:09]} 35. Qf6+ {[%clk 0:00:06]}  Kh7 {[%clk 0:00:09]} 36. Qf4 {[%clk 0:00:03]}  b5 {[%clk 0:00:08]} 37. Rf3 {[%clk 0:00:03]}  a4 {[%clk 0:00:07]} 38. Rh3 {[%clk 0:00:03]}  Ra8 {[%clk 0:00:06]} 39. Rh1 {[%clk 0:00:02]}  Ra6 {[%clk 0:00:07]} 40. Kg1 {[%clk 0:00:02]}  Kg7 {[%clk 0:00:06]} 41. Rg3 {[%clk 0:00:01]}  a3 {[%clk 0:00:05]} 42. Rxg6+ {[%clk 0:00:01]}  Rxg6 {[%clk 0:00:04]} 43. Kf2 {[%clk 0:00:02]}  a2 {[%clk 0:00:03]} 44. Ra1 {[%clk 0:00:03]}  Ra6 {[%clk 0:00:03]} 45. Qd2 {[%clk 0:00:02]}  Rxe5 {[%clk 0:00:02]} 46. Qd4 {[%clk 0:00:03]}  f6 {[%clk 0:00:03]} 47. Kg1 {[%clk 0:00:02]}  Rf5 {[%clk 0:00:03]} 48. Kh2 {[%clk 0:00:03]}  Rh5+ {[%clk 0:00:03]} 49. Kg3 {[%clk 0:00:03]}  Rg5+ {[%clk 0:00:03]} 50. Kh3 {[%clk 0:00:03]}  c5 {[%clk 0:00:03]} 51. Qf4 {[%clk 0:00:02]}  Re6 {[%clk 0:00:02]} 52. Qc7+ {[%clk 0:00:03]}  Kg6 {[%clk 0:00:02]} 53. Rxa2 {[%clk 0:00:04]}  Rh5+ {[%clk 0:00:03]} 54. Kg3 {[%clk 0:00:03]}  Rg5+ {[%clk 0:00:04]} 55. Kf2 {[%clk 0:00:03]}  Rf5+ {[%clk 0:00:04]} 56. Kg1 {[%clk 0:00:03]}  Re1+ {[%clk 0:00:03]} 57. Kh2 {[%clk 0:00:04]}  Rh5+ {[%clk 0:00:03]} 58. Kg3 {[%clk 0:00:05]}  Rg5+ {[%clk 0:00:04]} 59. Kf2 {[%clk 0:00:05]}  Ree5 {[%clk 0:00:03]} 60. Qc8 {[%clk 0:00:04]}  Rgf5+ {[%clk 0:00:04]} 61. Kg1 {[%clk 0:00:04]}  Kh5 {[%clk 0:00:03]} 62. Qc6 {[%clk 0:00:03]}  b4 {[%clk 0:00:02]} 63. Rf2 {[%clk 0:00:03]}  Rg5 {[%clk 0:00:02]} 64. Rf1 {[%clk 0:00:03]}  Re2 {[%clk 0:00:00]} 65. Qf3+ {[%clk 0:00:03]} 1-0


[Site "https://www.chess.com"]